bitfinex/quotes_SOLUSD_20260208
["timestamp","ask_amount","ask_price","bid_price","bid_amount"]
[1770514415195,4.05144725,87.842,87.81,3.98844805]
[1770514415395,4.05144725,87.842,87.82,3.98844805]
[1770514418016,5.13032502,87.857,87.8,3.98844805]
[1770514418017,4.05144725,87.839,87.8,3.98844805]
[1770514419014,39.84608027,87.838,87.8,3.98844805]
[1770514419317,39.84608027,87.838,87.776,28.48130734]
[1770514419318,4.05144725,87.837,87.786,28.47833822]
[1770514419501,4.05144725,87.837,87.8,3.98844805]
[1770514419701,4.05144725,87.837,87.8,15.37792308]
[1770514421526,4.05144725,87.835,87.8,15.37792308]
[1770514421906,4.05144725,87.835,87.81,3.98844805]
[1770514422620,4.05144725,87.835,87.8,11.38947503]
[1770514422830,4.05144725,87.835,87.786,28.47833822]
[1770514422831,4.05144725,87.833,87.81,3.98844805]
[1770514425219,4.05144725,87.833,87.803,11.38907142]
[1770514425220,4.05144725,87.831,87.8,3.98844805]
[1770514425526,4.05144725,87.831,87.785,28.47838653]
[1770514425725,4.05144725,87.831,87.81,3.98844805]
[1770514427224,4.05144725,87.831,87.801,11.38930767]
[1770514427225,4.05144725,87.831,87.8,3.98844805]
[1770514428337,4.05144725,87.831,87.766,56.96960551]
[1770514428518,4.05144725,87.829,87.81,3.98844805]
[1770514429709,4.05144725,87.829,87.8,3.98844805]
[1770514430230,5.13032502,87.847,87.766,56.96960551]
[1770514430231,4.05144725,87.827,87.766,56.96960551]
[1770514430529,4.05144725,87.827,87.8,3.98844805]
[1770514431311,4.05144725,87.827,87.79,3.98844805]
[1770514431523,4.05144725,87.827,87.78,3.98844805]
[1770514433336,4.05144725,87.825,87.79,3.98844805]
[1770514436640,4.05144725,87.825,87.781,11.39198687]
[1770514436641,4.05144725,87.823,87.8,3.98844805]
[1770514436834,4.05144725,87.828,87.8,3.98844805]
[1770514439141,4.05144725,87.826,87.8,3.98844805]
[1770514440545,4.05144725,87.824,87.79,3.98844805]
[1770514440733,4.05144725,87.824,87.79,15.3792648]
[1770514441248,4.05144725,87.824,87.8,3.98844805]
[1770514442246,4.05144725,87.824,87.79,15.3792648]
[1770514442428,4.05144725,87.824,87.794,11.39029886]
[1770514442629,4.05144725,87.824,87.8,3.98844805]
[1770514443124,4.05144725,87.822,87.8,3.98844805]
[1770514445258,4.05144725,87.822,87.79,3.98844805]
[1770514448454,4.05144725,87.822,87.791,11.39068925]
[1770514452454,4.05144725,87.822,87.8,3.98844805]
[1770514452749,4.05144725,87.822,87.791,11.39068925]
[1770514452935,11.38679814,87.821,87.791,11.39068925]
[1770514453135,4.05144725,87.82,87.791,11.39068925]
[1770514455052,4.05144725,87.82,87.766,56.96913926]
[1770514455259,4.05144725,87.82,87.79,3.98844805]
[1770514456271,0.6,87.846,87.766,56.96913926]
[1770514456272,4.05144725,87.845,87.8,3.98844805]
[1770514456445,4.05144725,87.844,87.81,3.98844805]
[1770514457459,4.05144725,87.842,87.811,11.38809488]
[1770514459264,4.05144725,87.847,87.82,3.98844805]
[1770514460346,4.05144725,87.847,87.821,11.38679814]
[1770514461162,4.05144725,87.839,87.8,3.98844805]
[1770514461452,4.05144725,87.839,87.803,11.38905713]
[1770514462467,4.05144725,87.829,87.79,15.37919639]
[1770514466674,4.05144725,87.827,87.79,15.37919639]
[1770514469672,4.05144725,87.825,87.8,3.98844805]
[1770514471470,4.05144725,87.825,87.8,3.99018593]
[1770514473787,4.05144725,87.823,87.8,3.99018593]
[1770514474664,4.05144725,87.823,87.795,11.39014246]
[1770514475067,4.05144725,87.823,87.8,3.99018593]
[1770514475675,4.05144725,87.821,87.79,3.99018593]
[1770514477373,4.05144725,87.821,87.8,3.99018593]
[1770514479072,4.05144725,87.819,87.8,3.99018593]
[1770514479255,4.05144725,87.819,87.79,3.99018593]
[1770514480278,4.05144725,87.819,87.791,11.39066165]
[1770514486081,4.05144725,87.819,87.8,3.99018593]
[1770514486577,4.05144725,87.819,87.791,11.39066165]
[1770514489877,4.05144725,87.818,87.791,11.39066165]
[1770514490676,4.05144725,87.818,87.77,3.99018593]
[1770514490880,4.05144725,87.799,87.761,11.39453595]
[1770514492290,4.05144725,87.797,87.751,11.39588152]
[1770514493684,11.39004054,87.796,87.751,11.39588152]
[1770514493885,4.05144725,87.795,87.751,11.39588152]
[1770514495286,4.05144725,87.795,87.76,3.99018593]
[1770514496088,4.05144725,87.793,87.761,11.39458301]
[1770514498167,4.05144725,87.791,87.751,11.39588152]
[1770514499688,4.05144725,87.791,87.76,3.99018593]
[1770514499879,4.05144725,87.791,87.77,3.99018593]
[1770514500387,4.05144725,87.801,87.78,3.99018593]
[1770514500572,4.05144725,87.824,87.79,3.99018593]
[1770514501874,4.05144725,87.824,87.78,3.99018593]
[1770514504108,4.05144725,87.822,87.781,11.39198687]
[1770514505682,4.05144725,87.82,87.79,3.99018593]
[1770514506477,4.05144725,87.82,87.8,3.99018593]
[1770514508819,4.05144725,87.846,87.81,3.99018593]
[1770514508995,4.05144725,87.846,87.82,3.99018593]
[1770514509507,4.05144725,87.846,87.83,3.99018593]
[1770514510201,3.99018593,87.87,87.83,3.99018593]
[1770514510514,4.05144725,87.859,87.84,3.99018593]
[1770514510879,4.05144725,87.859,87.831,11.3855017]
[1770514511288,4.05144725,87.879,87.84,3.99018593]
[1770514511490,4.05144725,87.879,87.85,3.99018593]
[1770514512285,4.05144725,87.877,87.85,3.99018593]
[1770514513107,4.05144725,87.877,87.84,3.99018593]
[1770514513709,4.05144725,87.889,87.801,101.94015634]
[1770514513880,4.05144725,87.879,87.84,3.99018593]
[1770514514392,4.05144725,87.877,87.84,3.99018593]
[1770514514982,4.05144725,87.877,87.841,11.38420555]
[1770514515202,4.05144725,87.889,87.86,3.99018593]
[1770514515399,4.05144725,87.889,87.87,3.99018593]
[1770514516330,4.05144725,87.924,87.88,3.99018593]
[1770514516488,4.05144725,87.924,87.871,11.38031887]
[1770514516489,4.05144725,87.924,87.89,3.99018593]
[1770514517990,4.05144725,87.909,87.871,11.38031887]
[1770514518492,4.05144725,87.907,87.871,11.38031887]
[1770514519407,4.05144725,87.907,87.87,3.99018593]
[1770514519605,4.05144725,87.899,87.862,11.38144589]
[1770514520890,4.05144725,87.889,87.85,3.99018593]
[1770514521790,4.05144725,87.889,87.853,11.38263164]
[1770514524115,4.05144725,87.887,87.853,11.38263164]
[1770514526913,4.05144725,87.885,87.853,11.38263164]
[1770514528017,3.99318825,87.885,87.853,11.38263164]
[1770514528514,3.99018593,87.88,87.83,3.99018593]
[1770514528991,3.99018593,87.88,87.84,3.99018593]
[1770514530015,11.37941236,87.878,87.841,11.38420555]
[1770514530221,4.02231775,87.877,87.841,11.38420555]
[1770514530807,4.02231775,87.889,87.87,3.99018593]
[1770514531337,4.02231775,87.889,87.841,39.84471943]
[1770514531338,4.02231775,87.914,87.88,3.99018593]
[1770514531518,4.02231775,87.914,87.89,3.99018593]
[1770514532735,4.02231775,87.914,87.9,3.99018593]
[1770514533406,4.02231775,87.914,87.9,3.98048952]
[1770514534519,4.02231775,87.914,87.901,11.37643485]
[1770514534722,4.02231775,87.92,87.901,11.37643485]
[1770514535612,4.02231775,87.92,87.893,11.37746676]
[1770514536722,4.02231775,87.92,87.89,3.98048952]
[1770514538218,4.02231775,87.92,87.9,3.98048952]
[1770514541403,4.02231775,87.92,87.89,3.98048952]
[1770514542221,4.02231775,87.92,87.9,3.98048952]
[1770514546827,4.02231775,87.92,87.89,3.98048952]
[1770514548022,4.02231775,87.92,87.9,3.98048952]
[1770514548223,4.02231775,87.918,87.867,5.13032502]
[1770514548522,4.02231775,87.918,87.89,3.98048952]
[1770514549326,4.02231775,87.916,87.89,3.98048952]
[1770514550426,4.02231775,87.915,87.89,15.35826376]
[1770514550627,4.02231775,87.927,87.9,3.98048952]
[1770514550829,4.02231775,87.927,87.89,15.35826376]
[1770514551006,4.02231775,87.927,87.9,3.98048952]
[1770514552226,4.02231775,87.925,87.9,3.98048952]
[1770514553427,4.02231775,87.925,87.877,28.44883393]
[1770514553621,4.02231775,87.925,87.89,3.98048952]
[1770514553807,4.02231775,87.925,87.89,15.35826531]
[1770514554129,4.02231775,87.925,87.877,28.44883393]
[1770514554130,4.02231775,87.919,87.87,3.98048952]
[1770514554504,4.02231775,87.909,87.87,3.98048952]
[1770514554709,4.02231775,87.899,87.864,11.38118062]
[1770514554916,4.02231775,87.899,87.868,11.38069997]
[1770514555431,4.02231775,87.899,87.87,3.98048952]
[1770514556325,4.02231775,87.899,87.868,11.38069997]
[1770514556533,4.02231775,87.897,87.863,11.38125662]
[1770514556914,4.02231775,87.897,87.87,3.98048952]
[1770514557436,4.02231775,87.897,87.863,11.38125662]
[1770514557730,4.02231775,87.895,87.863,11.38125662]
[1770514559230,4.02231775,87.893,87.863,11.38125662]
[1770514560233,4.02231775,87.893,87.85,3.98048952]
[1770514560442,4.02231775,87.889,87.852,11.3826846]
[1770514560918,4.02231775,87.887,87.852,11.3826846]
[1770514561123,4.02231775,87.887,87.84,3.98048952]
[1770514561313,4.02231775,87.879,87.842,11.38397548]
[1770514563333,4.02231775,87.877,87.842,11.38397548]
[1770514564409,4.02231775,87.877,87.85,3.98048952]
[1770514566618,3.98048952,87.89,87.84,3.98048952]
[1770514566619,4.02231775,87.875,87.84,3.98048952]
[1770514568732,4.02231775,87.875,87.841,11.38420555]
[1770514572142,4.02231775,87.875,87.85,3.98048952]
[1770514572435,4.02231775,87.875,87.841,11.38420555]
[1770514572436,4.02231775,87.888,87.87,3.98048952]
[1770514572641,4.02231775,87.888,87.86,3.98048952]
[1770514573942,4.02231775,87.887,87.85,3.98048952]
[1770514574138,4.02231775,87.885,87.851,11.38290969]
[1770514574541,4.02231775,87.885,87.86,3.98048952]
[1770514575541,4.02231775,87.885,87.851,11.38290969]
[1770514575743,4.02231775,87.879,87.829,28.46417102]
[1770514575943,4.02231775,87.879,87.84,3.98048952]
[1770514576241,4.02231775,87.877,87.841,11.38420555]
[1770514576440,4.02231775,87.877,87.85,3.98048952]
[1770514578129,4.02231775,87.877,87.86,3.98048952]
[1770514578334,4.02231775,87.877,87.86,15.36217492]
[1770514580651,4.02231775,87.889,87.87,3.98048952]
[1770514583454,4.02231775,87.889,87.871,11.38031887]
[1770514583754,4.02231775,87.902,87.88,3.98048952]
[1770514584853,18.65540727,87.929,87.891,1.48073267]
[1770514585153,7.28255221,87.929,87.91,3.98048952]
[1770514586858,3.93212542,87.928,87.91,3.98048952]
[1770514587457,3.93212542,87.926,87.91,3.98048952]
[1770514587644,3.93212542,87.926,87.896,1.48065578]
[1770514587957,3.93212542,87.926,87.9,3.98048952]
[1770514588143,3.93212542,87.926,87.91,3.98048952]
[1770514591059,3.93212542,87.924,87.896,11.376986]
[1770514591259,3.93212542,87.924,87.9,3.98048952]
[1770514592364,3.93212542,87.922,87.879,1.47874629]
[1770514592564,3.93212542,87.919,87.88,3.98048952]
[1770514592758,3.93212542,87.919,87.91,3.98048952]
[1770514594466,3.93212542,87.919,87.901,11.37643485]
[1770514595370,3.93212542,87.919,87.91,3.98048952]
[1770514595574,3.93212542,87.919,87.901,11.37643485]
[1770514597146,3.93212542,87.919,87.9,3.97999184]
[1770514598351,3.88928323,87.918,87.891,1.47464966]
[1770514598555,3.88928323,87.918,87.88,3.97999184]
[1770514599251,3.88928323,87.916,87.873,11.37996302]
[1770514599446,3.88928323,87.916,87.87,5.45408285]
[1770514599649,3.88928323,87.899,87.857,1.47409101]
[1770514599845,3.88928323,87.889,87.857,1.47409101]
[1770514600763,3.88928323,87.889,87.858,1.47353877]
[1770514601264,3.88928323,87.889,87.862,1.47353877]
[1770514606475,3.88928323,87.887,87.862,1.47353877]
[1770514607273,3.88928323,87.887,87.856,1.46984668]
[1770514608249,3.88928323,87.887,87.87,3.97999184]
[1770514608450,3.88928323,87.887,87.863,11.38135506]
[1770514609854,3.88928323,87.887,87.86,3.97999184]
[1770514612671,3.88928323,87.885,87.86,3.97999184]
[1770514614475,3.88928323,87.885,87.858,11.38188944]
[1770514614774,3.88928323,87.885,87.86,3.97999184]
[1770514615277,3.88928323,87.885,87.858,1.46644141]
[1770514615570,3.88928323,87.883,87.84,3.97999184]
[1770514615763,11.37863547,87.884,87.84,3.97999184]
[1770514615764,3.88928323,87.879,87.84,3.97999184]
[1770514616374,3.88928323,87.879,87.84,5.44550983]
[1770514616873,3.88928323,87.877,87.841,11.38420555]
[1770514617478,3.88928323,87.877,87.841,12.84926978]
[1770514618677,3.88928323,87.875,87.841,12.84926978]
[1770514619057,3.88928323,87.875,87.842,1.46461567]
[1770514619962,3.88928323,87.875,87.86,3.97999184]
[1770514620564,3.88928323,87.875,87.857,11.38213232]
[1770514620765,3.88928323,87.89,87.87,3.97999184]
[1770514621259,3.88928323,87.889,87.861,1.46330067]
[1770514622099,3.88928323,87.889,87.86,3.97999184]
[1770514622267,3.88928323,87.889,87.857,12.84500469]
[1770514622586,3.88928323,87.877,87.846,1.46287237]
[1770514623286,3.88928323,87.877,87.841,1.46287237]
[1770514623686,3.88928323,87.875,87.841,1.46287237]
[1770514624180,3.88928323,87.875,87.843,1.46244899]
[1770514624385,3.88928323,87.875,87.85,3.97999184]
[1770514625286,3.88928323,87.875,87.85,15.36302162]
[1770514625591,11.37912983,87.881,87.851,1.4612078]
[1770514625798,3.79552846,87.905,87.871,1.4612078]
[1770514625979,3.79552846,87.928,87.885,1.4612078]
[1770514626189,3.79552846,87.928,87.88,3.97999184]
[1770514626190,3.79552846,87.928,87.9,3.97999184]
[1770514627278,3.79552846,87.928,87.91,3.97999184]
[1770514627279,3.79552846,87.927,87.91,3.97999184]
[1770514631884,3.79552846,87.927,87.886,1.45885082]
[1770514632094,0.1,87.93,87.88,3.97999184]
[1770514632095,3.79552846,87.919,87.88,3.97999184]
[1770514632483,3.79552846,87.919,87.881,11.37894174]
[1770514633491,3.79552846,87.919,87.88,3.97999184]
[1770514633992,11.37423508,87.918,87.883,11.37868422]
[1770514634294,3.9610516,87.917,87.88,3.97999184]
[1770514634596,3.9610516,87.909,87.869,11.38048671]
[1770514634794,3.9610516,87.909,87.873,11.37994795]
[1770514636289,3.9610516,87.907,87.873,11.37994795]
[1770514636497,3.9610516,87.907,87.873,12.83659963]
[1770514636790,3.9610516,87.907,87.88,5.43664352]
[1770514636976,3.9610516,87.907,87.881,1.45665168]
[1770514637195,3.9610516,87.907,87.89,3.97999184]
[1770514637578,3.9610516,87.907,87.881,1.45665168]
[1770514639896,3.9610516,87.907,87.883,1.45560797]
[1770514640087,3.9610516,87.926,87.901,1.45560797]
[1770514640679,3.9610516,87.926,87.9,3.97999184]
[1770514642195,3.9610516,87.924,87.89,3.97999184]
[1770514642384,3.9610516,87.919,87.889,11.37793935]
[1770514642584,3.9610516,87.919,87.89,3.97999184]
[1770514642988,3.9610516,87.919,87.893,11.37743371]
[1770514643188,3.9610516,87.919,87.9,3.97999184]
[1770514644396,3.9610516,87.925,87.902,1.45394686]
[1770514644604,0.1,87.93,87.911,3.67985298]
[1770514644791,0.1,87.93,87.91,3.97999184]
[1770514645203,0.1,87.93,87.91,7.65984482]
[1770514645398,0.1,87.93,87.91,3.97999184]
[1770514645793,0.1,87.93,87.91,7.65984482]
[1770514646293,0.1,87.93,87.911,11.37514076]
[1770514647097,0.1,87.93,87.912,3.67985298]
[1770514648107,0.1,87.95,87.921,3.67985298]
[1770514648405,0.1,87.95,87.923,3.67985298]
[1770514648610,3.9610516,87.949,87.923,3.67985298]
[1770514650510,3.9610516,87.949,87.925,3.67985298]
[1770514650906,3.9610516,87.949,87.931,3.67985298]
[1770514651205,0.1,87.96,87.931,3.67985298]
[1770514653095,0.1,87.96,87.93,3.97999184]
[1770514653096,2.69735586,87.959,87.933,3.67985298]
[1770514653293,0.1,87.96,87.933,3.67985298]
[1770514654792,2.69117823,87.959,87.935,3.67985298]
[1770514656907,0.1,87.96,87.941,3.77447222]
[1770514658390,0.1,87.96,87.942,11.37113097]
[1770514658591,0.1,87.96,87.943,3.77447222]
[1770514658893,0.1,87.97,87.944,3.77447222]
[1770514659305,2.67219606,87.969,87.942,11.37113097]
[1770514661008,0.1,87.97,87.943,3.77447222]
[1770514662706,2.76287195,87.97,87.945,3.77447222]
[1770514663711,0.1,87.97,87.945,3.77447222]
[1770514664507,0.1,87.97,87.944,39.7980533]
[1770514664508,0.1,87.97,87.944,3.98640146]
[1770514664691,0.1,87.97,87.953,3.98640146]
[1770514666210,0.1,87.97,87.954,11.36957955]
[1770514666424,0.1,87.97,87.955,3.98640146]
[1770514668514,0.1,87.97,87.957,3.98640146]
[1770514669097,4.07725675,87.99,87.958,3.93640146]
[1770514669300,0.08549921,87.989,87.958,3.93640146]
[1770514669490,0.08549921,87.989,87.952,28.42459523]
[1770514669491,0.08549921,87.989,87.96,3.93640146]
[1770514670709,0.08549921,87.989,87.961,3.93640146]
[1770514672211,0.08549921,87.989,87.962,11.3685455]
[1770514672415,0.08549921,87.989,87.963,3.93640146]
[1770514673712,0.1,87.99,87.965,3.93640146]
[1770514675514,0.1,87.99,87.971,3.93640146]
[1770514678622,0.1,87.99,87.973,3.93640146]
[1770514679320,0.1496118,88.037,87.983,3.88640146]
[1770514679498,0.1496118,88.037,88.001,3.88640146]
[1770514679900,3.97725675,88.02,88.001,3.88640146]
[1770514680320,0.14624643,88.009,87.973,3.88640146]
[1770514680515,0.14624643,88.009,87.981,3.88640146]
[1770514681102,0.14624643,88.019,87.981,3.88640146]
[1770514682825,0.14624643,88.019,87.983,3.88640146]
[1770514684026,0.14624643,88.019,87.985,3.88640146]
[1770514686122,0.14624643,88.019,87.987,3.88640146]
[1770514687616,0.14624643,88.019,87.989,3.88640146]
[1770514688907,0.11769089,88.029,88.001,3.88640146]
[1770514689417,3.97725675,88.04,87.989,3.88640146]
[1770514689418,0.11470149,88.019,87.989,3.88640146]
[1770514689603,0.11470149,88.019,87.991,3.88640146]
[1770514691713,0.11470149,88.019,87.993,3.88640146]
[1770514692412,0.10308332,88.009,87.99,11.36492052]
[1770514692614,0.10308332,88.009,87.992,11.36466951]
[1770514694023,0.1002617,88.037,87.993,3.88640146]
[1770514694226,0.1002617,88.029,87.993,3.88640146]
[1770514695213,0.1002617,88.029,87.994,11.3644112]
[1770514696025,0.09471531,88.028,87.995,3.88640146]
[1770514697129,0.0919898,88.019,87.99,3.88640146]
[1770514698316,0.0919898,88.019,87.994,15.25081266]
[1770514698938,0.0919898,88.019,87.995,3.88640146]
[1770514699731,0.0919898,88.019,87.997,3.88640146]
[1770514699917,0.08399968,88.029,87.997,3.88640146]
[1770514701633,3.97725675,88.02,87.997,3.88640146]
[1770514701830,0.07882472,88.025,87.999,3.88640146]
[1770514703342,0.07882472,88.025,88.001,3.88640146]
[1770514704040,0.07376795,88.019,87.993,3.88640146]
[1770514704633,3.97725675,88.02,87.996,3.88640146]
[1770514704837,0.07128305,88.024,87.996,3.88640146]
[1770514706342,0.07128305,88.024,88.001,3.88640146]
[1770514707939,0.06399827,88.029,88.003,3.88640146]
[1770514708241,56.46482334,88.115,88.002,11.3633781]
[1770514708242,0.06399827,88.039,88.011,3.88640146]
[1770514710137,0.06399827,88.039,88.012,11.36208698]
[1770514710443,0.06399827,88.039,88.013,3.88640146]
[1770514712141,0.06399827,88.039,88.009,3.88640146]
[1770514713247,0.05016471,88.038,88.009,3.88640146]
[1770514717069,0.04146091,88.044,88.011,3.88640146]
[1770514717349,0.04146091,88.044,88.01,15.33960193]
[1770514717350,0.04146091,88.053,88.021,3.88640146]
[1770514717530,0.03934709,88.049,88.021,3.88640146]
[1770514719940,0.03934709,88.049,88.023,3.88640146]
[1770514722052,11.35722656,88.05,88.011,11.36221608]
[1770514722053,3.97053336,88.04,88.011,11.36221608]
[1770514723263,15.32912291,88.04,88.011,11.36221608]
[1770514723447,15.32912291,88.04,88.011,15.2642574]
[1770514724261,15.32912291,88.04,88.007,3.90204132]
[1770514725661,7.23841374,88.049,88.011,3.90204132]
[1770514726169,11.35744139,88.048,88.011,3.90204132]
[1770514728243,3.97053336,88.04,88.011,3.90204132]
[1770514728758,3.97053336,88.04,88.012,11.36208698]
[1770514728947,3.97053336,88.04,88.013,3.90204132]
[1770514729145,11.35744139,88.048,88.013,3.90204132]
[1770514730860,3.97053336,88.04,88.013,3.90204132]
[1770514731064,11.35744139,88.048,88.013,3.90204132]
[1770514731967,7.23841374,88.049,88.013,3.90204132]
[1770514732264,7.23841374,88.049,88.01,3.97053336]
[1770514732265,7.23841374,88.049,88.015,3.90204132]
[1770514732561,11.35744139,88.048,88.015,3.90204132]
[1770514738352,11.35744139,88.048,88.019,3.90204132]
[1770514739367,7.23841374,88.049,88.019,3.90204132]
[1770514739967,18.59583463,88.049,88.019,3.90204132]
[1770514740573,3.97053336,88.03,87.994,3.90204132]
[1770514741866,11.36118338,88.019,87.994,3.90204132]
[1770514743062,3.97053336,88.03,87.99,15.33537306]
[1770514743063,11.36042511,88.025,87.996,3.90204132]
[1770514743272,11.35986547,88.03,87.996,3.90204132]
[1770514743664,15.33039883,88.03,87.996,3.90204132]
[1770514745578,3.97053336,88.03,87.996,3.90204132]
[1770514745774,3.97053336,88.02,87.996,3.90204132]
[1770514747053,3.97053336,88.02,87.984,11.36558108]
[1770514747276,3.97053336,88.02,87.985,3.90204132]
[1770514747475,3.97053336,88.01,87.985,3.90204132]
[1770514747875,3.97053336,87.99,87.961,3.90204132]
[1770514749080,11.36505699,87.989,87.961,3.90204132]
[1770514751556,3.97053336,88.0,87.961,3.90204132]
[1770514752579,11.36505699,87.989,87.961,3.90204132]
[1770514754078,11.36505699,87.989,87.93,3.97053336]
[1770514754079,3.57208501,87.969,87.93,3.97053336]
[1770514754280,3.57208501,87.975,87.933,11.37220306]
[1770514754470,3.57208501,87.979,87.941,11.37126027]
[1770514754672,3.57208501,87.979,87.95,3.97053336]
[1770514755478,3.57208501,87.985,87.95,3.97053336]
[1770514755663,3.57208501,87.985,87.951,11.36996736]
[1770514756181,3.57208501,87.985,87.952,3.71760692]
[1770514756364,3.57208501,87.983,87.952,3.71760692]
[1770514756561,3.57208501,87.98,87.952,3.71760692]
[1770514756783,10.80983052,87.988,87.952,3.71760692]
[1770514758184,14.93740034,87.987,87.954,3.71760692]
[1770514759484,14.93740034,87.987,87.956,3.71760692]
[1770514760268,3.57208501,87.987,87.956,3.71760692]
[1770514760591,3.57208501,87.987,87.961,3.71760692]
[1770514760994,7.23774551,87.988,87.961,3.71760692]
[1770514761789,7.23774551,87.988,87.962,11.3685455]
[1770514762094,7.23774551,87.988,87.963,3.71760692]
[1770514762782,3.57208501,87.987,87.963,3.71760692]
[1770514767385,3.57208501,87.987,87.965,3.71760692]
[1770514767590,7.23774551,87.988,87.965,3.71760692]
[1770514769401,7.23774551,87.988,87.967,3.71760692]
[1770514770294,3.57208501,87.987,87.967,3.71760692]
[1770514771098,7.23774551,87.988,87.967,3.71760692]
[1770514771699,6.73774551,87.988,87.96,3.71760692]
[1770514771901,6.73774551,87.988,87.961,3.71760692]
[1770514773782,11.36531533,87.987,87.961,3.71760692]
[1770514774300,11.36531533,87.987,87.961,15.08626535]
[1770514774483,6.73774551,87.988,87.962,3.71760692]
[1770514774798,18.10294074,87.988,87.962,3.71760692]
[1770514775100,3.57208501,87.987,87.962,3.71760692]
[1770514775881,3.82096739,87.985,87.962,3.71760692]
[1770514776083,6.73774551,87.988,87.962,3.71760692]
[1770514776380,10.55783323,87.988,87.962,3.71760692]
[1770514776602,3.82008772,87.987,87.962,3.71760692]
[1770514777295,3.82008772,87.987,87.963,3.48458049]
[1770514777900,6.73774551,87.988,87.965,3.48458049]
[1770514778595,15.18266895,88.002,87.97,3.97053336]
[1770514778805,3.81835858,88.001,87.971,3.48458049]
[1770514780399,7.29482667,88.005,87.973,3.48458049]
[1770514782684,11.36311985,88.004,87.973,3.48458049]
[1770514783081,11.36311985,88.004,87.975,3.48458049]
[1770514783684,3.9744214,88.0,87.975,3.48458049]
[1770514783902,3.81420654,88.003,87.975,3.48458049]
[1770514785182,11.3633781,88.002,87.975,3.48458049]
[1770514788998,7.29482667,88.005,87.981,3.48458049]
[1770514789199,11.36311985,88.004,87.981,3.48458049]
[1770514790005,15.17265038,88.004,87.981,3.48458049]
[1770514794513,3.80587397,88.003,87.981,3.48458049]
[1770514798195,11.3633781,88.002,87.981,3.48458049]
[1770514798398,3.80309705,87.989,87.964,3.48458049]
[1770514800012,3.80242264,87.979,87.941,3.48458049]
[1770514800209,3.80242264,87.979,87.944,3.48458049]
[1770514800402,3.9744214,87.96,87.944,3.48458049]
[1770514800601,3.9744214,87.98,87.946,3.48458049]
[1770514801197,3.80175597,87.979,87.946,3.48458049]
[1770514801612,3.80109697,87.977,87.946,3.48458049]
[1770514801813,3.80109697,87.977,87.947,3.48458049]
[1770514804215,11.36577915,87.984,87.951,3.48458049]
[1770514804421,3.79916501,87.988,87.961,3.48458049]
[1770514804602,11.36437944,87.995,87.961,3.48458049]
[1770514804915,3.79916501,87.994,87.961,3.48458049]
[1770514805515,3.79916501,87.994,87.963,3.84453984]
[1770514805723,11.36359948,88.001,87.971,3.84453984]
[1770514806218,3.5014407,88.0,87.971,3.84453984]
[1770514806417,11.3629261,88.006,87.971,3.84453984]
[1770514807213,3.5014407,88.004,87.971,3.84453984]
[1770514807807,11.3629261,88.006,87.973,3.84453984]
[1770514808011,11.36168539,88.016,87.991,3.84453984]
[1770514810817,3.5014407,88.015,87.991,3.84453984]
[1770514811322,75.74476856,88.035,88.011,3.84453984]
[1770514811521,75.74476856,88.035,88.0,3.9744214]
[1770514811522,7.34476856,88.035,88.021,3.84453984]
[1770514811908,7.34476856,88.035,88.015,3.84453984]
[1770514811909,3.9744214,88.03,88.015,3.84453984]
[1770514812309,3.6488439,88.029,87.993,3.52022279]
[1770514812515,3.6488439,88.019,87.993,3.52022279]
[1770514812829,3.6488439,88.009,87.981,3.52022279]
[1770514813212,3.6488439,88.017,87.975,3.52022279]
[1770514813530,3.6488439,88.009,87.981,3.52022279]
[1770514813707,3.6488439,87.999,87.981,3.52022279]
[1770514814328,3.6488439,87.999,87.972,3.52022279]
[1770514815230,3.6488439,87.998,87.972,3.52022279]
[1770514815830,3.6488439,87.997,87.972,3.52022279]
[1770514817726,3.6488439,87.997,87.973,14.88734679]
[1770514818831,3.6488439,87.997,87.974,3.52022279]
[1770514819130,3.6488439,87.989,87.962,3.52022279]
[1770514820223,3.6488439,87.989,87.964,3.52022279]
[1770514822033,3.6488439,87.989,87.955,3.52022279]
[1770514822335,3.6488439,87.987,87.959,3.52022279]
[1770514823635,3.6488439,87.985,87.959,3.52022279]
[1770514827029,3.6488439,87.985,87.959,11.36889347]
[1770514827236,3.6488439,87.985,87.96,3.52022279]
[1770514828729,3.6488439,87.979,87.952,3.52022279]
[1770514828923,3.6488439,87.979,87.911,56.87530173]
[1770514828924,3.6488439,87.979,87.941,3.52022279]
[1770514829234,3.6488439,87.969,87.941,3.52022279]
[1770514830029,3.6488439,87.959,87.931,3.52022279]
[1770514830217,3.6488439,87.959,87.935,14.89220008]
[1770514830419,3.6488439,87.959,87.936,3.52022279]
[1770514832630,3.6488439,87.959,87.92,3.9744214]
[1770514832631,3.6488439,87.959,87.931,3.52022279]
[1770514832833,3.6488439,87.949,87.924,11.37333389]
[1770514833037,3.6488439,87.949,87.921,3.52022279]
[1770514834814,3.6488439,87.949,87.922,11.37371761]
[1770514835032,3.6488439,87.949,87.923,3.52022279]
[1770514835425,3.6488439,87.939,87.915,3.52022279]
[1770514835614,3.6488439,87.939,87.91,0.2]
[1770514835818,3.58244347,87.929,87.91,0.2]
[1770514836220,3.58244347,87.919,87.891,11.37772177]
[1770514836420,3.58244347,87.919,87.892,3.75841501]